fUST/lending_fUST_20250701
["ID","MTS","AMOUNT","RATE_DAILY","PERIOD"]
[368836805,1751375472816,-1927.65,0.00022303,2]
[368836807,1751375472826,-705.67,0.00022303,2]
[368836809,1751375472835,-775.82,0.00022304,2]
[368836811,1751375472844,-460.0,0.00022304,2]
[368836812,1751375472853,-460.0,0.00022304,2]
[368836814,1751375472862,-1036.36,0.00022304,2]
[368836817,1751375472871,-511.22,0.00022304,2]
[368836819,1751375472881,-529.41,0.00022304,2]
[368836821,1751375472890,-1113.07,0.00022304,2]
[368836823,1751375472899,-555.41,0.00022304,2]
[368836825,1751375472909,-554.69,0.00022304,2]
[368836826,1751375472918,-460.0,0.00022304,2]
[368836828,1751375472928,-5098.55,0.00022304,2]
[368836830,1751375472937,-885.07,0.00022304,2]
[368836832,1751375472947,-1093.64,0.00022304,2]
[368836834,1751375472956,-1367.97,0.00022304,2]
[368836836,1751375472965,-580.86,0.00022304,2]
[368836838,1751375472975,-151.0,0.00022305,7]
[368836840,1751375472984,-460.0,0.00022305,2]
[368836842,1751375472993,-460.0,0.00022305,2]
[368836844,1751375473003,-902.98,0.00022305,2]
[368836846,1751375473012,-1429.29,0.00022305,2]
[368836848,1751375473021,-629.44,0.00022305,2]
[368836851,1751375473035,-2335.14,0.00022305,2]
[368836853,1751375473045,-763.4,0.00022305,2]
[368836865,1751375473055,-786.9,0.00022305,2]
[368836868,1751375473165,-1640.44,0.00022305,2]
[368836870,1751375473175,-1403.77,0.00022305,2]
[368836871,1751375473185,-5761.22,0.00022305,2]
[368836874,1751375473194,-1823.42,0.00022305,2]
[368836876,1751375473205,-168.0,0.00022305,2]
[368836877,1751375473214,-241.229824,0.0002231,7]
[368836879,1751375473223,-241.229824,0.0002231,7]
[368836881,1751375473232,-342.612274,0.0002231,7]
[368836883,1751375473243,-342.612274,0.0002231,7]
[368836885,1751375473252,-5888.0,0.00022313,2]
[368836888,1751375473262,-441.54162117,0.00022318,2]
[368836890,1751375473271,-3417.16781649,0.00022323,2]
[368836892,1751375473280,-700.0,0.00022397,2]
[368836894,1751375473289,-168.0,0.00022405,2]
[368836896,1751375473299,-200.0,0.0002241,5]
[368836898,1751375473308,-168.0,0.00022412,2]
[368836901,1751375473318,-151.0,0.00022434,7]
[368836903,1751375473328,-270.806773,0.00022434,7]
[368836905,1751375473338,-270.806773,0.00022434,7]
[368836907,1751375473347,-151.0,0.00022434,7]
[368836909,1751375473356,-162.00273,0.00022434,7]
[368836911,1751375473366,-616.479557,0.00022434,7]
[368836913,1751375473375,-616.479557,0.00022434,7]
[368836915,1751375473386,-756.105498,0.00022434,7]
[368836917,1751375473395,-756.105498,0.00022434,7]
[368836919,1751375473405,-168.0,0.00022434,2]
[368836922,1751375473417,-896.06,0.00022437,6]
[368836923,1751375473428,-300.0,0.00022466,2]
[368836926,1751375473439,-350.0,0.00022466,2]
[368836927,1751375473449,-500.0,0.000225,2]
[368836928,1751375473460,-8464.31541756,0.00022521,7]
[368836929,1751375473470,-151.0,0.00022521,7]
[368836931,1751375473479,-299.731675,0.00022521,7]
[368836932,1751375473489,-299.731675,0.00022521,7]
[368836933,1751375473500,-502.391511,0.00022521,7]
[368836934,1751375473510,-502.391511,0.00022521,7]
[368836935,1751375473520,-896.06,0.00022537,7]
[368836936,1751375473529,-2375.85,0.00022576,2]
[368836937,1751375473539,-282.63031998,0.00022577,2]
[368836938,1751375473548,-595.26,0.00022577,2]
[368836939,1751375473558,-151.0,0.00022577,7]
[368836940,1751375473569,-151.0,0.00022577,7]
[368836941,1751375473578,-517.43,0.00022577,2]
[368836942,1751375473589,-151.0,0.00022577,7]
[368836943,1751375473599,-151.0,0.00022577,7]
[368836944,1751375473609,-2638.53,0.00022577,2]
[368836946,1751375473619,-2689.06,0.00022577,2]
[368836948,1751375473630,-642.95,0.00022577,2]
[368836950,1751375473639,-240.56344,0.00022577,7]
[368836952,1751375473649,-182.84,0.00022577,2]
[368836954,1751375473658,-240.56344,0.00022577,7]
[368836956,1751375473668,-2422.25,0.00022577,2]
[368836958,1751375473679,-1616.51,0.00022577,2]
[368836960,1751375473689,-1927.65,0.00022577,2]
[368836962,1751375473699,-705.67,0.00022577,2]
[368836964,1751375473708,-775.82,0.00022578,2]
[368836966,1751375473717,-460.0,0.00022578,2]
[368836968,1751375473727,-460.0,0.00022578,2]
[368836971,1751375473737,-1036.36,0.00022578,2]
[368836972,1751375473747,-511.22,0.00022578,2]
[368836975,1751375473757,-529.41,0.00022578,2]
[368836977,1751375473767,-1113.07,0.00022578,2]
[368836980,1751375473777,-555.41,0.00022578,2]
[368836982,1751375473786,-554.69,0.00022578,2]
[368836985,1751375473796,-499.87,0.00022578,2]
[368836987,1751375473805,-5098.55,0.00022578,2]
[368836989,1751375473814,-885.07,0.00022578,2]
[368836991,1751375473824,-1093.64,0.00022578,2]
[368836993,1751375473834,-1367.97,0.00022578,2]
[368836995,1751375473843,-580.86,0.00022578,2]
[368836996,1751375473852,-460.0,0.00022579,2]
[368836999,1751375473862,-460.0,0.00022579,2]
[368837000,1751375473872,-902.98,0.00022579,2]
[368837002,1751375473881,-1429.29,0.00022579,2]
[368837005,1751375473891,-629.44,0.00022579,2]
[368837008,1751375473900,-2335.14,0.00022579,2]
[368837009,1751375473910,-763.4,0.00022579,2]
[368837011,1751375473919,-786.9,0.00022579,2]
[368837014,1751375473932,-1640.44,0.00022579,2]
[368837016,1751375473942,-1403.77,0.00022579,2]
[368837018,1751375473952,-5761.22,0.00022579,2]
[368837020,1751375473963,-1823.42,0.00022579,2]
[368837022,1751375473972,-151.0,0.0002258,7]
[368837024,1751375473982,-39023.11194867,0.000226,5]
[368837026,1751375473992,-153.792341,0.000226,7]
[368837028,1751375474001,-172.521992,0.000226,2]
[368837030,1751375474010,-172.521992,0.000226,2]
[368837032,1751375474019,-296.927388,0.000226,7]
[368837034,1751375474029,-296.927388,0.000226,7]
[368837037,1751375474039,-190.315045,0.000226,7]
[368837038,1751375474048,-190.315045,0.000226,7]
[368837041,1751375474058,-839.715903,0.000226,7]
[368837043,1751375474068,-531.621476,0.000226,7]
[368837045,1751375474077,-839.715903,0.000226,7]
[368837047,1751375474087,-531.621476,0.000226,7]
[368837049,1751375474097,-847.53272281,0.000226,7]
[368837051,1751375474107,-213.87551669,0.000226,7]
[368837053,1751375474116,-365.158444,0.00022603,2]
[368837055,1751375474125,-823.0,0.00022603,2]
[368837057,1751375474135,-896.06,0.00022637,2]
[368837059,1751375474145,-896.06,0.00022737,2]
[368837061,1751375474155,-8464.31541756,0.00022762,7]
[368837064,1751375474165,-153.0,0.00022767,2]
[368837066,1751375474175,-153.0,0.00022767,2]
[368837068,1751375474187,-153.0,0.00022767,2]
[368837070,1751375474196,-153.0,0.00022767,2]
[368837072,1751375474205,-600.0,0.00022768,2]
[368837074,1751375474214,-500.0,0.00022784,2]
[368837076,1751375474224,-600.0,0.00022802,2]
[368837078,1751375474234,-600.0,0.00022803,2]
[368837080,1751375474244,-500.0,0.00022828,2]
[368837082,1751375474253,-2200.0,0.00022835,2]
[368837084,1751375474263,-896.06,0.00022837,2]
[368837086,1751375474273,-2375.85,0.0002285,2]
[368837088,1751375474282,-595.26,0.00022851,2]
[368837090,1751375474292,-517.43,0.00022851,2]
[368837092,1751375474302,-2638.53,0.00022851,2]
[368837094,1751375474312,-2689.06,0.00022851,2]
[368837096,1751375474323,-642.95,0.00022851,2]
[368837098,1751375474334,-2422.25,0.00022851,2]
[368837100,1751375474344,-1616.51,0.00022851,2]
[368837102,1751375474354,-1927.65,0.00022851,2]
[368837104,1751375474364,-705.67,0.00022851,2]
[368837106,1751375474374,-775.82,0.00022852,2]
[368837108,1751375474385,-460.0,0.00022852,2]
[368837110,1751375474394,-460.0,0.00022852,2]
[368837113,1751375474404,-499.3,0.00022852,2]
[368837115,1751375474417,-1036.36,0.00022852,2]
[368837117,1751375474429,-511.22,0.00022852,2]
[368837119,1751375474439,-529.41,0.00022852,2]
[368837121,1751375474448,-1113.07,0.00022852,2]
[368837123,1751375474460,-555.41,0.00022852,2]
[368837125,1751375474470,-554.69,0.00022852,2]
[368837127,1751375474481,-5098.55,0.00022852,2]
[368837129,1751375474493,-885.07,0.00022852,2]
[368837131,1751375474503,-1093.64,0.00022852,2]
[368837133,1751375474512,-1367.97,0.00022852,2]
[368837135,1751375474521,-580.86,0.00022852,2]
[368837138,1751375474531,-416.1,0.00022853,2]
[368837140,1751375474541,-460.0,0.00022853,2]
[368837142,1751375474551,-902.98,0.00022853,2]
[368837143,1751375474561,-1429.29,0.00022853,2]
[368837146,1751375474571,-629.44,0.00022853,2]
[368837148,1751375474581,-2335.14,0.00022853,2]
[368837150,1751375474591,-763.4,0.00022853,2]
[368837153,1751375474601,-786.9,0.00022853,2]
[368837155,1751375474610,-1640.44,0.00022853,2]
[368837157,1751375474620,-1403.77,0.00022853,2]
[368837159,1751375474629,-5761.22,0.00022853,2]
[368837161,1751375474639,-1823.42,0.00022853,2]
[368837163,1751375474649,-3417.16781649,0.00022873,2]
[368837165,1751375474659,-1108.44,0.000229,7]
[368837167,1751375474668,-51751.2,0.000229,2]
[368837169,1751375474679,-151.0,0.000229,7]
[368837171,1751375474689,-241.229824,0.000229,7]
[368837173,1751375474699,-241.229824,0.000229,7]
[368837175,1751375474709,-342.612274,0.000229,7]
[368837177,1751375474719,-342.612274,0.000229,7]
[368837179,1751375474728,-153.012771,0.000229,7]
[368837181,1751375474737,-299.731675,0.000229,7]
[368837184,1751375474747,-299.731679,0.000229,7]
[368837186,1751375474756,-151.0,0.000229,7]
[368837188,1751375474767,-270.806773,0.000229,7]
[368837200,1751375474871,-270.806769,0.000229,7]
[368837203,1751375474880,-151.0,0.000229,7]
[368837205,1751375474890,-167.445084,0.000229,7]
[368837207,1751375474899,-151.0,0.000229,7]
[368837209,1751375474909,-616.479557,0.000229,7]
[368837211,1751375474918,-616.479557,0.000229,7]
[368837213,1751375474929,-502.391511,0.000229,7]
[368837215,1751375474939,-502.391505,0.000229,7]
[368837217,1751375474949,-279.158323,0.000229,7]
[368837219,1751375474960,-756.105498,0.000229,7]
[368837221,1751375474969,-152.266266,0.000229,7]
[368837223,1751375474979,-756.105489,0.000229,7]
[368837225,1751375474988,-240.56344,0.000229,7]
[368837227,1751375474997,-240.563448,0.000229,7]
[368837229,1751375475007,-231.28369723,0.00022927,2]
[368837232,1751375475016,-896.06,0.00022937,6]
[368837234,1751375475026,-1000.0,0.00023,23]
[368837236,1751375475035,-160.0,0.00023,3]
[368837238,1751375475045,-6646.76,0.00023,7]
[368837240,1751375475055,-47530.83,0.00023,7]
[368837242,1751375475064,-160.0,0.00023,3]
[368837244,1751375475074,-296.927388,0.00023,7]
[368837246,1751375475083,-296.927388,0.00023,7]
[368837248,1751375475093,-151.0,0.00023,7]
[368837250,1751375475103,-190.315045,0.00023,7]
[368837252,1751375475112,-190.315047,0.00023,7]
[368837254,1751375475122,-839.715903,0.00023,7]
[368837256,1751375475131,-531.621476,0.00023,7]
[368837258,1751375475141,-839.7159,0.00023,7]
[368837260,1751375475150,-531.62147,0.00023,7]
[368837262,1751375475160,-160.0,0.00023,3]
[368837264,1751375475170,-837.20943635,0.00023,3]
[368837266,1751375475182,-160.0,0.00023,3]
[368837268,1751375475192,-230.32585361,0.00023,3]
[368837270,1751375475201,-160.0,0.00023,3]
[368837272,1751375475211,-160.0,0.00023,3]
[368837274,1751375475221,-215.01728679,0.00023,3]
[368837277,1751375475231,-8464.31541756,0.00023003,8]
[368837279,1751375475242,-450.0,0.00023014,2]
[368837282,1751375475252,-150.0,0.00023014,7]
[368837284,1751375475262,-169.0,0.00023014,7]
[368837285,1751375475272,-327.0,0.00023014,7]
[368837288,1751375475283,-450.0,0.00023014,2]
[368837290,1751375475292,-896.06,0.00023037,3]
[368837292,1751375475303,-500.0,0.00023117,2]
[368837294,1751375475312,-2375.85,0.00023124,2]
[368837296,1751375475323,-595.26,0.00023125,2]
[368837298,1751375475333,-517.43,0.00023125,2]
[368837300,1751375475343,-2638.53,0.00023125,2]
[368837302,1751375475353,-2689.06,0.00023125,2]
[368837304,1751375475363,-642.95,0.00023125,2]
[368837306,1751375475373,-2422.25,0.00023125,2]
[368837308,1751375475382,-1616.51,0.00023125,2]
[368837310,1751375475392,-1927.65,0.00023125,2]
[368837312,1751375475402,-705.67,0.00023125,2]
[368837315,1751375475414,-775.82,0.00023126,2]
[368837318,1751375475429,-579.94,0.00023126,2]
[368837320,1751375475439,-460.0,0.00023126,2]
[368837322,1751375475448,-1036.36,0.00023126,2]
[368837324,1751375475458,-511.22,0.00023126,2]
[368837326,1751375475468,-529.41,0.00023126,2]
[368837328,1751375475480,-1113.07,0.00023126,2]
[368837330,1751375475489,-555.41,0.00023126,2]
[368837332,1751375475500,-554.69,0.00023126,2]
[368837334,1751375475511,-5098.55,0.00023126,2]
[368837336,1751375475520,-885.07,0.00023126,2]
[368837338,1751375475530,-1093.64,0.00023126,2]
[368837340,1751375475540,-1367.97,0.00023126,2]
[368837342,1751375475549,-580.86,0.00023126,2]
[368837344,1751375475559,-460.0,0.00023127,2]
[368837346,1751375475568,-902.98,0.00023127,2]
[368837348,1751375475579,-1429.29,0.00023127,2]
[368837351,1751375475589,-629.44,0.00023127,2]
[368837353,1751375475600,-2335.14,0.00023127,2]
[368837355,1751375475610,-763.4,0.00023127,2]
[368837357,1751375475619,-786.9,0.00023127,2]
[368837359,1751375475629,-1640.44,0.00023127,2]
[368837361,1751375475639,-1403.77,0.00023127,2]
[368837363,1751375475648,-5761.22,0.00023127,2]
[368837365,1751375475658,-1823.42,0.00023127,2]
[368837367,1751375475667,-172.521992,0.00023129,2]
[368837369,1751375475678,-172.521992,0.00023129,2]
[368837371,1751375475687,-1500.0,0.00023129,14]
[368837373,1751375475696,-1500.0,0.00023129,14]
[368837375,1751375475705,-1500.0,0.00023129,14]
[368837377,1751375475714,-1500.0,0.00023129,14]
[368837379,1751375475724,-1500.0,0.00023129,14]
[368837381,1751375475733,-1500.0,0.00023129,14]
[368837383,1751375475743,-1500.0,0.00023129,14]
[368837385,1751375475752,-1500.0,0.00023129,14]
[368837387,1751375475762,-1500.0,0.00023129,14]
[368837389,1751375475772,-1500.0,0.00023129,14]
[368837391,1751375475782,-1500.0,0.00023129,14]
[368837393,1751375475792,-1500.0,0.00023129,14]
[368837395,1751375475802,-1500.0,0.00023129,14]
[368837397,1751375475811,-1500.0,0.00023129,14]
[368837399,1751375475820,-1500.0,0.00023129,14]
[368837401,1751375475830,-1500.0,0.00023129,14]
[368837403,1751375475839,-1500.0,0.00023129,14]
[368837405,1751375475849,-1500.0,0.00023129,14]
[368837407,1751375475859,-1500.0,0.00023129,14]
[368837409,1751375475870,-1500.0,0.00023129,14]
[368837411,1751375475880,-1500.0,0.00023129,14]
[368837413,1751375475890,-1500.0,0.00023129,14]
[368837415,1751375475899,-1500.0,0.00023129,14]
[368837417,1751375475908,-1500.0,0.00023129,14]
[368837419,1751375475918,-1500.0,0.00023129,14]
[368837421,1751375475927,-1500.0,0.00023129,14]
[368837423,1751375475936,-1500.0,0.00023129,14]
[368837425,1751375475945,-1500.0,0.00023129,14]
[368837427,1751375475955,-1500.0,0.00023129,14]
[368837429,1751375475964,-1500.0,0.00023129,14]
[368837431,1751375475974,-1500.0,0.00023129,14]
[368837433,1751375475983,-1500.0,0.00023129,14]
[368837435,1751375475992,-1500.0,0.00023129,14]
[368837437,1751375476002,-1500.0,0.00023129,14]
[368837439,1751375476011,-1500.0,0.00023129,14]
[368837441,1751375476021,-1500.0,0.00023129,14]
[368837443,1751375476030,-1500.0,0.00023129,14]
[368837445,1751375476039,-1500.0,0.00023129,14]
[368837447,1751375476049,-1500.0,0.00023129,14]
[368837449,1751375476059,-1500.0,0.00023129,14]
[368837451,1751375476069,-1352.092364,0.00023129,14]
[368837453,1751375476079,-896.06,0.00023137,2]
[368837455,1751375476089,-230.0,0.00023176,2]
[368837456,1751375476099,-600.0,0.00023181,2]
[368837457,1751375476108,-732.117071,0.00023205,2]
[368837458,1751375476118,-896.06,0.00023237,5]
[368837459,1751375476127,-8464.31541756,0.00023245,8]
[368837460,1751375476137,-600.0,0.00023248,2]
[368837461,1751375476146,-600.0,0.00023261,2]
[368837462,1751375476155,-500.0,0.00023312,2]
[368837463,1751375476165,-500.0,0.0002332,2]
[368837464,1751375476174,-896.06,0.00023337,2]
[368837465,1751375476185,-2375.85,0.00023398,2]
[368837466,1751375476194,-595.26,0.00023399,2]
[368837467,1751375476204,-517.43,0.00023399,2]
[368837468,1751375476214,-2638.53,0.00023399,2]
[368837469,1751375476223,-2689.06,0.00023399,2]
[368837470,1751375476234,-642.95,0.00023399,2]
[368837471,1751375476244,-2422.25,0.00023399,2]
[368837473,1751375476254,-1616.51,0.00023399,2]
[368837475,1751375476263,-1927.65,0.00023399,2]
[368837477,1751375476273,-705.67,0.00023399,2]
[368837479,1751375476283,-775.82,0.000234,2]
[368837481,1751375476293,-281.86,0.000234,2]
[368837483,1751375476303,-1036.36,0.000234,2]
[368837486,1751375476312,-511.22,0.000234,2]
[368837488,1751375476322,-529.41,0.000234,2]
[368837489,1751375476331,-1113.07,0.000234,2]
[368837500,1751375476429,-555.41,0.000234,2]
[368837502,1751375476439,-554.69,0.000234,2]
[368837504,1751375476450,-5098.55,0.000234,2]
[368837507,1751375476460,-885.07,0.000234,2]
[368837509,1751375476470,-1093.64,0.000234,2]
[368837511,1751375476479,-1367.97,0.000234,2]
[368837512,1751375476488,-580.86,0.000234,2]
[368837515,1751375476500,-512.16355698,0.00023401,2]
[368837517,1751375476509,-902.98,0.00023401,2]
[368837519,1751375476518,-1429.29,0.00023401,2]
[368837521,1751375476527,-629.44,0.00023401,2]
[368837523,1751375476536,-2335.14,0.00023401,2]
[368837525,1751375476546,-763.4,0.00023401,2]
[368837527,1751375476555,-786.9,0.00023401,2]
[368837529,1751375476564,-1640.44,0.00023401,2]
[368837531,1751375476574,-1403.77,0.00023401,2]
[368837533,1751375476584,-5761.22,0.00023401,2]
[368837535,1751375476595,-1823.42,0.00023401,2]
[368837537,1751375476605,-500.0,0.00023407,2]
[368837539,1751375476614,-3417.16781649,0.00023424,2]
[368837541,1751375476623,-600.0,0.00023424,2]
[368837543,1751375476632,-896.06,0.00023437,3]
[368837545,1751375476642,-575.5050994,0.00023479,2]
[368837547,1751375476651,-177.5971231,0.00023479,2]
[368837549,1751375476661,-575.5050994,0.00023479,2]
[368837551,1751375476672,-177.5971231,0.00023479,2]
[368837553,1751375476682,-177.5971231,0.00023479,2]
[368837555,1751375476692,-575.5050994,0.00023479,2]
[368837557,1751375476701,-575.5050994,0.00023479,2]
[368837559,1751375476711,-177.5971231,0.00023479,2]
[368837561,1751375476721,-569.8722216,0.00023479,2]
[368837563,1751375476731,-177.5971231,0.00023479,2]
[368837565,1751375476740,-177.5971231,0.00023479,2]
[368837567,1751375476750,-177.5971231,0.00023479,2]
[368837569,1751375476759,-177.5971231,0.00023479,2]
[368837571,1751375476769,-176.7264936,0.00023479,2]
[368837573,1751375476779,-8464.31541756,0.00023486,9]
[368837575,1751375476789,-500.0,0.00023495,2]
[368837577,1751375476799,-152.897461,0.00023507,7]
[368837579,1751375476808,-5753.0,0.00023507,2]
[368837581,1751375476817,-896.06,0.00023537,5]
[368837583,1751375476827,-205.30840444,0.00023561,2]
[368837586,1751375476837,-450.0,0.00023562,2]
[368837588,1751375476847,-550.0,0.00023562,2]
[368837590,1751375476856,-600.0,0.00023603,2]
[368837592,1751375476866,-896.06,0.00023637,5]
[368837594,1751375476876,-600.0,0.00023641,2]
[368837596,1751375476885,-241.229824,0.0002365,7]
[368837598,1751375476896,-241.229834,0.0002365,7]
[368837600,1751375476906,-342.612274,0.0002365,7]
[368837602,1751375476915,-342.612267,0.0002365,7]
[368837604,1751375476925,-2375.90990126,0.00023672,2]
[368837606,1751375476936,-776.01531096,0.00023673,2]
[368837608,1751375476946,-595.39329537,0.00023673,2]
[368837610,1751375476956,-517.56,0.00023673,2]
[368837612,1751375476965,-2638.6710455,0.00023673,2]
[368837614,1751375476974,-1036.41326042,0.00023673,2]
[368837616,1751375476984,-2689.28474175,0.00023673,2]
[368837618,1751375476994,-643.14618745,0.00023673,2]
[368837620,1751375477004,-511.28523828,0.00023673,2]
[368837622,1751375477013,-529.55,0.00023673,2]
[368837624,1751375477023,-1113.09,0.00023673,2]
[368837626,1751375477032,-2422.32986188,0.00023673,2]
[368837628,1751375477041,-555.5,0.00023673,2]
[368837630,1751375477051,-554.89557794,0.00023673,2]
[368837632,1751375477061,-1616.6473909,0.00023673,2]
[368837634,1751375477071,-5098.6671287,0.00023673,2]
[368837636,1751375477081,-885.18,0.00023673,2]
[368837638,1751375477092,-1093.68582457,0.00023673,2]
[368837641,1751375477108,-1368.0450787,0.00023673,2]
[368837644,1751375477130,-1927.84,0.00023673,2]
[368837647,1751375477147,-581.03634406,0.00023673,2]
[368837650,1751375477168,-705.69,0.00023673,2]
[368837653,1751375477190,-151.0,0.00023675,7]
[368837656,1751375477209,-903.07,0.00023675,2]
[368837659,1751375477229,-1429.4435871,0.00023675,2]
[368837662,1751375477246,-629.44578704,0.00023675,2]
[368837665,1751375477263,-2335.1438255,0.00023675,2]
[368837668,1751375477283,-763.44,0.00023675,2]
[368837671,1751375477304,-786.97034388,0.00023675,2]
[368837674,1751375477318,-1640.47135108,0.00023675,2]
[368837677,1751375477337,-1403.91,0.00023675,2]
[368837680,1751375477355,-5761.29665578,0.00023675,2]
[368837683,1751375477372,-1823.50730824,0.00023675,2]
[368837685,1751375477387,-8464.31541756,0.00023728,9]
[368837687,1751375477403,-500.0,0.00023728,2]
[368837689,1751375477422,-896.06,0.00023737,4]
[368837690,1751375477439,-51751.2,0.000238,2]
[368837692,1751375477457,-896.06,0.00023837,5]
[368837694,1751375477473,-600.0,0.00023855,2]
[368837696,1751375477489,-600.0,0.00023883,2]
[368837698,1751375477507,-2046.50289857,0.000239,2]
[368837700,1751375477522,-896.06,0.00023937,7]
[368837702,1751375477537,-8464.31541756,0.00023969,10]
[368837703,1751375477551,-500.0,0.00023969,2]
[368837705,1751375477565,-600.0,0.0002397,2]
[368837707,1751375477579,-3417.16781649,0.00023975,2]
[368837709,1751375477594,-1000.0,0.00024,24]
[368837711,1751375477609,-160.0,0.00024,7]
[368837712,1751375477619,-1108.44,0.00024,7]
[368837714,1751375477629,-6646.76,0.00024,7]
[368837715,1751375477639,-47530.83,0.00024,7]
[368837717,1751375477649,-172.521992,0.00024,2]
[368837719,1751375477659,-172.521992,0.00024,2]
[368837720,1751375477669,-160.0,0.00024,7]
[368837722,1751375477680,-837.20943635,0.00024,7]
[368837724,1751375477690,-160.0,0.00024,7]
[368837725,1751375477699,-230.32585361,0.00024,7]
[368837727,1751375477709,-160.0,0.00024,7]
[368837729,1751375477718,-160.0,0.00024,7]
[368837730,1751375477728,-215.01728679,0.00024,7]
[368837732,1751375477737,-600.0,0.00024034,2]
[368837733,1751375477747,-896.06,0.00024037,5]
[368837735,1751375477756,-500.0,0.0002404,2]
[368837737,1751375477766,-600.0,0.00024041,2]
[368837738,1751375477775,-600.0,0.00024046,2]
[368837740,1751375477785,-650.0,0.0002411,2]
[368837742,1751375477795,-600.0,0.00024115,2]
[368837743,1751375477805,-896.06,0.00024137,6]
[368837745,1751375477814,-500.0,0.00024139,2]
[368837746,1751375477824,-333.0,0.00024164,7]
[368837748,1751375477833,-500.0,0.0002417,2]
[368837750,1751375477843,-8464.31541756,0.0002421,10]
[368837751,1751375477852,-500.0,0.00024219,2]
[368837753,1751375477862,-896.06,0.00024237,5]
[368837755,1751375477872,-923.70229559,0.00024274,12]
[368837756,1751375477882,-239.84119403,0.00024296,2]
[368837758,1751375477892,-1058.59473062,0.00024299,12]
[368837760,1751375477901,-500.0,0.000243,3]
[368837761,1751375477912,-600.0,0.00024305,2]
[368837763,1751375477921,-896.06,0.00024337,2]
[368837765,1751375477933,-600.0,0.00024361,2]
[368837767,1751375477943,-500.0,0.00024367,2]
[368837768,1751375477952,-500.0,0.00024378,2]
[368837770,1751375477962,-600.0,0.000244,2]
[368837772,1751375477971,-307.6867203,0.00024411,2]
[368837773,1751375477981,-896.06,0.00024437,3]
[368837775,1751375477991,-8464.31541756,0.00024452,11]
[368837799,1751375478300,-3417.16781649,0.00024525,2]
[368837801,1751375478349,-896.06,0.00024537,7]
[368837803,1751375478366,-600.0,0.00024539,2]
[368837805,1751375478375,-1058.59473062,0.00024542,12]
[368837806,1751375478385,-262.585117,0.00024561,2]
[368837808,1751375478395,-167.2561094,0.00024571,2]
[368837810,1751375478412,-700.0,0.00024589,2]
[368837811,1751375478422,-82812.30019889,0.00024589,10]
[368837815,1751375478461,-103726.39936836,0.00024589,10]
[368837816,1751375478473,-1013.35375258,0.00024589,10]
[368837818,1751375478485,-717.81341083,0.00024589,10]
[368837854,1751375479025,-77.03552386,0.00017271,2]
[368837856,1751375479038,-422.96447614,0.00017271,2]
[368837857,1751375479047,-427.93145635,0.00017271,2]
[368837859,1751375479057,-500.0,0.00017271,2]
[368837860,1751375479066,-500.0,0.00017271,2]
[368837862,1751375479076,-500.0,0.00017271,2]
[368837864,1751375479085,-500.0,0.00017271,2]
[368837865,1751375479095,-500.0,0.00017271,2]
[368837867,1751375479104,-460.0,0.00017367,2]
[368837869,1751375479113,-460.0,0.00017367,2]
[368837870,1751375479123,-460.0,0.00017372,2]
[368837872,1751375479133,-460.0,0.00017372,2]